[Event "*** Titled Tuesday Blitz"]
[Site "Chess.com"]
[Date "2020.04.21"]
[Round "3"]
[White "want2lose"]
[Black "Firegrizzly"]
[Result "1/2-1/2"]
[WhiteElo "2915"]
[BlackElo "2682"]
[TimeControl "180+1"]
[EndTime "10:29:48 PDT"]
[Termination "Game drawn - insufficient material"]

1. Nf3 {[%clk 0:03:00.7]} 1... Nf6 {[%clk 0:02:59.2]} 2. g3 {[%clk 0:03:00.8]}
2... e6 {[%clk 0:02:57.8]} 3. Bg2 {[%clk 0:02:30.2]} 3... b5 {[%clk 0:02:56.7]}
4. b3 {[%clk 0:02:18.2]} 4... d5 {[%clk 0:02:55.1]} 5. c4 {[%clk 0:02:16.2]}
5... bxc4 {[%clk 0:02:52]} 6. bxc4 {[%clk 0:02:16.4]} 6... Be7 {[%clk
0:02:50.3]} 7. O-O {[%clk 0:02:16.4]} 7... O-O {[%clk 0:02:49.9]} 8. d4 {[%clk
0:02:16.2]} 8... Ba6 {[%clk 0:02:47.1]} 9. cxd5 {[%clk 0:02:12.2]} 9... exd5
{[%clk 0:02:44.6]} 10. Nc3 {[%clk 0:02:09.4]} 10... Nbd7 {[%clk 0:02:36.2]} 11.
Bf4 {[%clk 0:01:59.1]} 11... c5 {[%clk 0:02:34.8]} 12. dxc5 {[%clk 0:01:56.6]}
12... Nxc5 {[%clk 0:02:31.7]} 13. Nd4 {[%clk 0:01:55.3]} 13... Rc8 {[%clk
0:02:29.7]} 14. Nf5 {[%clk 0:01:47.4]} 14... Ne6 {[%clk 0:02:18]} 15. Nxd5
{[%clk 0:01:32.2]} 15... Nxd5 {[%clk 0:02:13.4]} 16. Qxd5 {[%clk 0:01:33.1]}
16... Nxf4 {[%clk 0:02:02.3]} 17. gxf4 {[%clk 0:01:27.3]} 17... Bf6 {[%clk
0:02:01.1]} 18. Rac1 {[%clk 0:01:03.1]} 18... Bxe2 {[%clk 0:01:50.2]} 19. Rxc8
{[%clk 0:00:59.9]} 19... Qxc8 {[%clk 0:01:49.4]} 20. Re1 {[%clk 0:00:59.6]}
20... Bc4 {[%clk 0:01:45.4]} 21. Qa5 {[%clk 0:00:47.8]} 21... Bxa2 {[%clk
0:01:35.9]} 22. Nh6+ {[%clk 0:00:20]} 22... gxh6 {[%clk 0:01:33.4]} 23. Qxa2
{[%clk 0:00:20.9]} 23... Qc5 {[%clk 0:01:28]} 24. Kh1 {[%clk 0:00:20]} 24... Kh8
{[%clk 0:01:23.4]} 25. Bd5 {[%clk 0:00:19.3]} 25... Qc7 {[%clk 0:01:13.5]} 26.
Qa4 {[%clk 0:00:16.1]} 26... h5 {[%clk 0:01:11.6]} 27. Ba2 {[%clk 0:00:10]}
27... h4 {[%clk 0:01:10.3]} 28. Bb1 {[%clk 0:00:09.7]} 28... Qb7+ {[%clk
0:00:58.8]} 29. Be4 {[%clk 0:00:09.7]} 29... Qb2 {[%clk 0:00:53.7]} 30. Bb1
{[%clk 0:00:09.9]} 30... Qb7+ {[%clk 0:00:43]} 31. Be4 {[%clk 0:00:09.9]} 31...
Qe7 {[%clk 0:00:41.4]} 32. Re2 {[%clk 0:00:05.2]} 32... Rg8 {[%clk 0:00:34.8]}
33. Bd3 {[%clk 0:00:03]} 33... Qb7+ {[%clk 0:00:33.6]} 34. Qe4 {[%clk
0:00:03.5]} 34... Qxe4+ {[%clk 0:00:33]} 35. Bxe4 {[%clk 0:00:03.8]} 35... a5
{[%clk 0:00:32.6]} 36. Bd5 {[%clk 0:00:03.9]} 36... a4 {[%clk 0:00:31.4]} 37.
Bxf7 {[%clk 0:00:03.9]} 37... Rf8 {[%clk 0:00:30.8]} 38. Be6 {[%clk 0:00:04.2]}
38... a3 {[%clk 0:00:30]} 39. f5 {[%clk 0:00:04.6]} 39... Bb2 {[%clk 0:00:29]}
40. Kg2 {[%clk 0:00:04.9]} 40... Kg7 {[%clk 0:00:28.4]} 41. Kf3 {[%clk
0:00:04.7]} 41... Kf6 {[%clk 0:00:29.3]} 42. Ke4 {[%clk 0:00:04.8]} 42... Rb8
{[%clk 0:00:29.6]} 43. Kd3 {[%clk 0:00:04.2]} 43... Be5 {[%clk 0:00:29.3]} 44.
f3 {[%clk 0:00:03.6]} 44... h3 {[%clk 0:00:27.8]} 45. Ke4 {[%clk 0:00:03.1]}
45... Rb2 {[%clk 0:00:26.2]} 46. Rxb2 {[%clk 0:00:02.8]} 46... axb2 {[%clk
0:00:25.6]} 47. Ba2 {[%clk 0:00:03.7]} 47... Bxh2 {[%clk 0:00:25.4]} 48. f4
{[%clk 0:00:03.8]} 48... Bxf4 {[%clk 0:00:24.6]} 49. Kf3 {[%clk 0:00:03.4]}
49... h2 {[%clk 0:00:24.1]} 50. Kg2 {[%clk 0:00:03.1]} 50... h5 {[%clk
0:00:22.6]} 51. Bb1 {[%clk 0:00:03.6]} 51... Bd6 {[%clk 0:00:22.5]} 52. Bc2
{[%clk 0:00:04.1]} 52... Kg5 {[%clk 0:00:22.4]} 53. Bb1 {[%clk 0:00:05]} 53...
Kg4 {[%clk 0:00:22.4]} 54. Kh1 {[%clk 0:00:05.2]} 54... h4 {[%clk 0:00:22.3]}
55. f6 {[%clk 0:00:05.3]} 55... Kg3 {[%clk 0:00:19.8]} 56. f7 {[%clk 0:00:06.2]}
56... Kf2 {[%clk 0:00:20.1]} 57. Bc2 {[%clk 0:00:06.5]} 57... Bf8 {[%clk
0:00:20]} 58. Bb1 {[%clk 0:00:07.4]} 58... Ke2 {[%clk 0:00:20.6]} 59. Bc2 {[%clk
0:00:07.9]} 59... Kd2 {[%clk 0:00:21.5]} 60. Bb1 {[%clk 0:00:08.8]} 60... Kc1
{[%clk 0:00:21.6]} 61. Bf5 {[%clk 0:00:09.2]} 61... b1=Q {[%clk 0:00:21.9]} 62.
Bxb1 {[%clk 0:00:09.6]} 62... Kxb1 {[%clk 0:00:22.8]} 63. Kxh2 {[%clk
0:00:10.5]} 63... Kc2 {[%clk 0:00:21.8]} 64. Kh3 {[%clk 0:00:11.4]} 64... Be7
{[%clk 0:00:22.1]} 65. f8=Q {[%clk 0:00:12.3]} 65... Bxf8 {[%clk 0:00:20.6]} 66.
Kxh4 {[%clk 0:00:13.2]} 1/2-1/2

[Event "*** Titled Tuesday Blitz"]
[Site "Chess.com"]
[Date "2020.04.21"]
[Round "3"]
[White "Gennady_Kozlov"]
[Black "AlexTriapishko"]
[Result "1-0"]
[WhiteElo "2570"]
[BlackElo "2754"]
[TimeControl "180+1"]
[EndTime "10:29:48 PDT"]
[Termination "Gennady_Kozlov won by resignation"]

1. b3 {[%clk 0:03:00.9]} 1... Nf6 {[%clk 0:02:48.8]} 2. Bb2 {[%clk 0:02:59]}
2... g6 {[%clk 0:02:49.7]} 3. e3 {[%clk 0:02:59.7]} 3... Bg7 {[%clk 0:02:49.7]}
4. f4 {[%clk 0:03:00.4]} 4... O-O {[%clk 0:02:49]} 5. Nf3 {[%clk 0:03:00.9]}
5... d5 {[%clk 0:02:43.9]} 6. Be2 {[%clk 0:03:01.4]} 6... c5 {[%clk 0:02:44.4]}
7. O-O {[%clk 0:03:01.8]} 7... Nc6 {[%clk 0:02:15.1]} 8. Ne5 {[%clk 0:03:01.7]}
8... Bd7 {[%clk 0:02:15.6]} 9. Bf3 {[%clk 0:03:00.8]} 9... Rc8 {[%clk
0:02:13.1]} 10. Qe2 {[%clk 0:03:01.2]} 10... a6 {[%clk 0:02:05.5]} 11. d3 {[%clk
0:03:01.6]} 11... d4 {[%clk 0:02:03]} 12. Nxc6 {[%clk 0:03:00.3]} 12... Bxc6
{[%clk 0:02:03.5]} 13. e4 {[%clk 0:03:01.2]} 13... e5 {[%clk 0:02:01.4]} 14.
fxe5 {[%clk 0:02:48.9]} 14... Nd7 {[%clk 0:01:55.9]} 15. Bg4 {[%clk 0:02:48.9]}
15... Bxe5 {[%clk 0:01:39.9]} 16. Nd2 {[%clk 0:02:49.3]} 16... Rc7 {[%clk
0:01:40.4]} 17. Ba3 {[%clk 0:02:46]} 17... Qe7 {[%clk 0:01:38.9]} 18. Nc4 {[%clk
0:02:40.9]} 18... Bg7 {[%clk 0:01:33.4]} 19. Bxd7 {[%clk 0:02:34.8]} 19... Bxd7
{[%clk 0:01:28.6]} 20. Rae1 {[%clk 0:02:33.1]} 20... Be6 {[%clk 0:01:21.4]} 21.
Qf3 {[%clk 0:02:28.6]} 21... b5 {[%clk 0:01:13]} 22. Nd2 {[%clk 0:02:26.9]}
22... Qg5 {[%clk 0:01:09.8]} 23. Bc1 {[%clk 0:02:23.3]} 23... Rfc8 {[%clk
0:01:08.2]} 24. a4 {[%clk 0:02:14.2]} 24... Qe7 {[%clk 0:01:05.7]} 25. axb5
{[%clk 0:02:13]} 25... axb5 {[%clk 0:01:06.6]} 26. Ba3 {[%clk 0:02:12.7]} 26...
Qd7 {[%clk 0:01:04.4]} 27. Qg3 {[%clk 0:02:02.4]} 27... c4 {[%clk 0:00:57.9]}
28. Bd6 {[%clk 0:02:01.8]} 28... Rc6 {[%clk 0:00:47.3]} 29. e5 {[%clk
0:02:01.6]} 29... cxb3 {[%clk 0:00:42.6]} 30. cxb3 {[%clk 0:02:01]} 30... Bd5
{[%clk 0:00:39.8]} 31. b4 {[%clk 0:01:51.5]} 31... f5 {[%clk 0:00:30.5]} 32.
exf6 {[%clk 0:01:47.2]} 32... Qxd6 {[%clk 0:00:30.9]} 33. Qxd6 {[%clk
0:01:39.5]} 33... Rxd6 {[%clk 0:00:31.8]} 34. fxg7 {[%clk 0:01:40.1]} 34... Rd7
{[%clk 0:00:29.8]} 35. Re5 {[%clk 0:01:37.8]} 35... Kxg7 {[%clk 0:00:29]} 36.
Rf4 {[%clk 0:01:30]} 36... Rc1+ {[%clk 0:00:22.6]} 37. Kf2 {[%clk 0:01:29.4]}
37... Rc2 {[%clk 0:00:23.1]} 38. Re2 {[%clk 0:01:23]} 38... Bb7 {[%clk 0:00:15]}
39. Nf3 {[%clk 0:01:18.5]} 39... Rxe2+ {[%clk 0:00:11.1]} 40. Kxe2 {[%clk
0:01:18.6]} 40... Bxf3+ {[%clk 0:00:09.5]} 41. Kxf3 {[%clk 0:01:18.5]} 41... h5
{[%clk 0:00:05.9]} 42. Ke4 {[%clk 0:01:17.3]} 42... Re7+ {[%clk 0:00:05.4]} 43.
Kxd4 {[%clk 0:01:15.7]} 43... Re2 {[%clk 0:00:06.1]} 44. g4 {[%clk 0:00:46.3]}
44... Rxh2 {[%clk 0:00:06.1]} 45. gxh5 {[%clk 0:00:44.2]} 45... Rxh5 {[%clk
0:00:07]} 46. Ke4 {[%clk 0:00:43.2]} 46... Rh3 {[%clk 0:00:03]} 47. Rg4 {[%clk
0:00:35.9]} 47... Kf6 {[%clk 0:00:02.3]} 48. Kd4 {[%clk 0:00:31.4]} 48... Kf5
{[%clk 0:00:02.2]} 49. Re4 {[%clk 0:00:31.6]} 49... g5 {[%clk 0:00:02.8]} 50.
Re5+ {[%clk 0:00:30.8]} 50... Kf4 {[%clk 0:00:03.2]} 51. Rxb5 {[%clk 0:00:31.3]}
51... g4 {[%clk 0:00:03.8]} 52. Rb8 {[%clk 0:00:31.2]} 52... Rh7 {[%clk
0:00:03.5]} 53. Rf8+ {[%clk 0:00:31]} 53... Kg5 {[%clk 0:00:04.1]} 54. Rg8+
{[%clk 0:00:30.5]} 54... Kf4 {[%clk 0:00:04]} 55. b5 {[%clk 0:00:31]} 55... g3
{[%clk 0:00:04.1]} 56. b6 {[%clk 0:00:26.9]} 56... Kf3 {[%clk 0:00:03.3]} 57.
Kc5 {[%clk 0:00:25.4]} 57... Rh5+ {[%clk 0:00:02.9]} 58. Kc6 {[%clk 0:00:24.4]}
58... Rh6+ {[%clk 0:00:03.5]} 59. Kb5 {[%clk 0:00:24.3]} 59... Rd6 {[%clk
0:00:02.8]} 60. b7 {[%clk 0:00:22.6]} 60... Rxd3 {[%clk 0:00:02.9]} 61. Kc4
{[%clk 0:00:21.8]} 61... Rd1 {[%clk 0:00:01]} 62. b8=Q {[%clk 0:00:21]} 1-0

[Event "*** Titled Tuesday Blitz"]
[Site "Chess.com"]
[Date "2020.04.21"]
[Round "3"]
[White "fabianvivasz"]
[Black "GamayevOleg"]
[Result "1-0"]
[WhiteElo "2329"]
[BlackElo "2542"]
[TimeControl "180+1"]
[EndTime "10:29:49 PDT"]
[Termination "fabianvivasz won by checkmate"]

1. e4 {[%clk 0:03:00.9]} 1... d6 {[%clk 0:03:00.9]} 2. d4 {[%clk 0:02:58.6]}
2... Nf6 {[%clk 0:03:01.1]} 3. Nc3 {[%clk 0:02:59.1]} 3... e5 {[%clk 0:03:01.1]}
4. dxe5 {[%clk 0:02:56.7]} 4... dxe5 {[%clk 0:03:02]} 5. Qxd8+ {[%clk
0:02:57.5]} 5... Kxd8 {[%clk 0:03:02.7]} 6. Bc4 {[%clk 0:02:56.4]} 6... Be6
{[%clk 0:03:02.1]} 7. Bxe6 {[%clk 0:02:56.3]} 7... fxe6 {[%clk 0:03:03]} 8. Bg5
{[%clk 0:02:44.4]} 8... Bd6 {[%clk 0:03:00.7]} 9. O-O-O {[%clk 0:02:40.3]} 9...
Ke7 {[%clk 0:03:01.1]} 10. f3 {[%clk 0:02:40.4]} 10... Nc6 {[%clk 0:03:01.2]}
11. Nh3 {[%clk 0:02:39.8]} 11... a6 {[%clk 0:03:02.1]} 12. Nf2 {[%clk
0:02:37.8]} 12... b5 {[%clk 0:03:03]} 13. Rhe1 {[%clk 0:02:27.7]} 13... Rhb8
{[%clk 0:03:03.2]} 14. Ng4 {[%clk 0:02:15.7]} 14... Na5 {[%clk 0:02:52.7]} 15.
f4 {[%clk 0:02:12.4]} 15... h6 {[%clk 0:02:45]} 16. fxe5 {[%clk 0:01:38.8]}
16... hxg5 {[%clk 0:02:44.4]} 17. exd6+ {[%clk 0:01:39.2]} 17... cxd6 {[%clk
0:02:45]} 18. Ne3 {[%clk 0:01:29.1]} 18... Nc6 {[%clk 0:02:40]} 19. h3 {[%clk
0:01:21.5]} 19... Ne5 {[%clk 0:02:30.7]} 20. Ne2 {[%clk 0:01:19.8]} 20... Rc8
{[%clk 0:02:24.6]} 21. Ng3 {[%clk 0:01:11]} 21... Rc7 {[%clk 0:02:21.4]} 22. Rd2
{[%clk 0:01:06]} 22... Rac8 {[%clk 0:02:20.4]} 23. Red1 {[%clk 0:01:06.1]} 23...
Rd8 {[%clk 0:02:18]} 24. Nef1 {[%clk 0:01:04]} 24... Nc4 {[%clk 0:02:16.5]} 25.
Re2 {[%clk 0:01:01.9]} 25... Rc5 {[%clk 0:02:16.2]} 26. Nh2 {[%clk 0:00:57.5]}
26... Rdc8 {[%clk 0:02:14.9]} 27. Nf3 {[%clk 0:00:55.4]} 27... g4 {[%clk
0:02:12.8]} 28. hxg4 {[%clk 0:00:53.1]} 28... Nxg4 {[%clk 0:02:13.7]} 29. Rh1
{[%clk 0:00:49.7]} 29... Nce5 {[%clk 0:02:05.2]} 30. Nxe5 {[%clk 0:00:46.5]}
30... Nxe5 {[%clk 0:02:05.7]} 31. Nh5 {[%clk 0:00:34.6]} 31... Kf7 {[%clk
0:02:01.2]} 32. Rf2+ {[%clk 0:00:33.3]} 32... Kg8 {[%clk 0:01:59.8]} 33. Nf4
{[%clk 0:00:32.1]} 33... Re8 {[%clk 0:01:58.5]} 34. Rh3 {[%clk 0:00:28.4]} 34...
Rc7 {[%clk 0:01:54.2]} 35. Nd3 {[%clk 0:00:24.7]} 35... Nc4 {[%clk 0:01:48.4]}
36. Rhf3 {[%clk 0:00:22]} 36... a5 {[%clk 0:01:44.6]} 37. b3 {[%clk 0:00:20.7]}
37... Nb6 {[%clk 0:01:41.7]} 38. Kb2 {[%clk 0:00:19.9]} 38... Nd7 {[%clk
0:01:38.7]} 39. Re3 {[%clk 0:00:17.6]} 39... e5 {[%clk 0:01:36.3]} 40. Ref3
{[%clk 0:00:17.6]} 40... Nf6 {[%clk 0:01:36.3]} 41. Re2 {[%clk 0:00:18]} 41...
Rec8 {[%clk 0:01:34.4]} 42. Nf2 {[%clk 0:00:18.5]} 42... b4 {[%clk 0:01:31.8]}
43. Rd3 {[%clk 0:00:16.8]} 43... Rc6 {[%clk 0:01:29.7]} 44. Red2 {[%clk
0:00:16.7]} 44... Ne8 {[%clk 0:01:30.2]} 45. Nd1 {[%clk 0:00:16.3]} 45... R8c7
{[%clk 0:01:29.1]} 46. Ne3 {[%clk 0:00:16.2]} 46... a4 {[%clk 0:01:26.2]} 47.
Nd5 {[%clk 0:00:17.1]} 47... a3+ {[%clk 0:01:24.3]} 48. Kc1 {[%clk 0:00:17.3]}
48... Rf7 {[%clk 0:01:23.4]} 49. Rf3 {[%clk 0:00:16.9]} 49... Rxf3 {[%clk
0:01:21.2]} 50. gxf3 {[%clk 0:00:17.8]} 50... Nf6 {[%clk 0:01:20.6]} 51. Nxb4
{[%clk 0:00:17.8]} 51... Ra6 {[%clk 0:01:19.2]} 52. Nd5 {[%clk 0:00:18.4]} 52...
Nxd5 {[%clk 0:01:18.3]} 53. Rxd5 {[%clk 0:00:19.3]} 53... Kf7 {[%clk 0:01:19]}
54. Kd2 {[%clk 0:00:19.6]} 54... Ke6 {[%clk 0:01:19.5]} 55. c4 {[%clk
0:00:19.9]} 55... g5 {[%clk 0:01:20]} 56. b4 {[%clk 0:00:18.9]} 56... Ra7 {[%clk
0:01:20]} 57. Kc3 {[%clk 0:00:18.6]} 57... Rf7 {[%clk 0:01:19.7]} 58. Rd3 {[%clk
0:00:18.5]} 58... Rb7 {[%clk 0:01:19.3]} 59. c5 {[%clk 0:00:18.1]} 59... dxc5
{[%clk 0:01:18.8]} 60. bxc5 {[%clk 0:00:19]} 60... Rb2 {[%clk 0:01:19.3]} 61.
Rd2 {[%clk 0:00:18.9]} 61... Rb1 {[%clk 0:01:18.1]} 62. Kc4 {[%clk 0:00:17.7]}
62... Rc1+ {[%clk 0:01:17.8]} 63. Kb5 {[%clk 0:00:17.9]} 63... Rc3 {[%clk
0:01:18.2]} 64. c6 {[%clk 0:00:14.6]} 64... Rc1 {[%clk 0:01:15.7]} 65. Kb6
{[%clk 0:00:13.9]} 65... Rb1+ {[%clk 0:01:16.6]} 66. Ka7 {[%clk 0:00:13.7]}
66... Rb2 {[%clk 0:01:17.1]} 67. c7 {[%clk 0:00:13.6]} 67... Rxd2 {[%clk
0:01:16.7]} 68. c8=Q+ {[%clk 0:00:13.9]} 68... Rd7+ {[%clk 0:01:16.3]} 69. Kb6
{[%clk 0:00:14.3]} 69... Kd6 {[%clk 0:01:17.2]} 70. Qc6+ {[%clk 0:00:13.5]}
70... Ke7 {[%clk 0:01:18.1]} 71. Qc5+ {[%clk 0:00:13.6]} 71... Ke6 {[%clk
0:01:17.1]} 72. Qxa3 {[%clk 0:00:13.8]} 72... Rd6+ {[%clk 0:01:16.2]} 73. Kc5
{[%clk 0:00:14.3]} 73... Rd4 {[%clk 0:01:15.4]} 74. Qb3+ {[%clk 0:00:14.2]}
74... Kf6 {[%clk 0:01:15.2]} 75. Qb6+ {[%clk 0:00:14.2]} 75... Kf7 {[%clk
0:01:15.4]} 76. Qc7+ {[%clk 0:00:14.3]} 76... Kf6 {[%clk 0:01:15]} 77. Qc8
{[%clk 0:00:13.2]} 77... Rd2 {[%clk 0:01:14.3]} 78. Qf8+ {[%clk 0:00:13.6]}
78... Kg6 {[%clk 0:01:14.3]} 79. Qg8+ {[%clk 0:00:13.2]} 79... Kf6 {[%clk
0:01:14.2]} 80. Qf8+ {[%clk 0:00:13.8]} 80... Kg6 {[%clk 0:01:14.2]} 81. Qf5+
{[%clk 0:00:14.7]} 81... Kh5 {[%clk 0:01:13.5]} 82. Qxe5 {[%clk 0:00:14.5]}
82... Rxa2 {[%clk 0:01:13.4]} 83. Kd6 {[%clk 0:00:13.9]} 83... Ra6+ {[%clk
0:01:13]} 84. Ke7 {[%clk 0:00:14.2]} 84... Ra7+ {[%clk 0:01:12.7]} 85. Kf6
{[%clk 0:00:14.4]} 85... Rh7 {[%clk 0:01:09.6]} 86. Qh2# {[%clk 0:00:13.8]} 1-0

[Event "*** Titled Tuesday Blitz"]
[Site "Chess.com"]
[Date "2020.04.21"]
[Round "3"]
[White "GM_LOADING"]
[Black "secretsuperstar7"]
[Result "1-0"]
[WhiteElo "2514"]
[BlackElo "2186"]
[TimeControl "180+1"]
[EndTime "10:29:50 PDT"]
[Termination "GM_LOADING won by checkmate"]

1. e4 {[%clk 0:03:00.9]} 1... c5 {[%clk 0:02:59]} 2. Nf3 {[%clk 0:03:00.6]} 2...
d6 {[%clk 0:02:57.9]} 3. d4 {[%clk 0:03:00.9]} 3... cxd4 {[%clk 0:02:56.9]} 4.
Nxd4 {[%clk 0:03:01.8]} 4... Nf6 {[%clk 0:02:56]} 5. Nc3 {[%clk 0:03:02.3]} 5...
a6 {[%clk 0:02:55]} 6. Be2 {[%clk 0:03:02.6]} 6... e5 {[%clk 0:02:53.4]} 7. Nf3
{[%clk 0:03:02.5]} 7... Be7 {[%clk 0:02:49.5]} 8. Bg5 {[%clk 0:03:01.2]} 8...
O-O {[%clk 0:02:47.8]} 9. O-O {[%clk 0:02:57.2]} 9... Be6 {[%clk 0:02:47.2]} 10.
Bxf6 {[%clk 0:02:56.7]} 10... Bxf6 {[%clk 0:02:46.7]} 11. Nd5 {[%clk 0:02:57.3]}
11... Be7 {[%clk 0:02:45.4]} 12. Bc4 {[%clk 0:02:56.7]} 12... Nd7 {[%clk
0:02:43.9]} 13. Qe2 {[%clk 0:02:35.4]} 13... Nc5 {[%clk 0:02:36.9]} 14. Rfd1
{[%clk 0:02:20.2]} 14... b5 {[%clk 0:02:27.9]} 15. Bb3 {[%clk 0:02:20.2]} 15...
Rb8 {[%clk 0:02:25.6]} 16. c3 {[%clk 0:01:26.9]} 16... a5 {[%clk 0:02:17.3]} 17.
Rd2 {[%clk 0:01:21.9]} 17... Bg4 {[%clk 0:02:05.8]} 18. h3 {[%clk 0:01:11.4]}
18... Bh5 {[%clk 0:02:03.9]} 19. Qe3 {[%clk 0:00:48.4]} 19... Bg6 {[%clk
0:01:53.1]} 20. Bc2 {[%clk 0:00:43.1]} 20... b4 {[%clk 0:01:48.9]} 21. cxb4
{[%clk 0:00:41.9]} 21... axb4 {[%clk 0:01:47.7]} 22. Rad1 {[%clk 0:00:41.9]}
22... Nb7 {[%clk 0:01:27.5]} 23. Nxb4 {[%clk 0:00:40]} 23... Rc8 {[%clk
0:01:20]} 24. Nd5 {[%clk 0:00:31.8]} 24... Bh5 {[%clk 0:01:11.3]} 25. b4 {[%clk
0:00:22.5]} 25... Bxf3 {[%clk 0:01:07]} 26. Qxf3 {[%clk 0:00:23.4]} 26... Bg5
{[%clk 0:01:06.7]} 27. Re2 {[%clk 0:00:23.9]} 27... Rc4 {[%clk 0:01:02.3]} 28.
Bb3 {[%clk 0:00:22]} 28... Rc6 {[%clk 0:01:01.4]} 29. a4 {[%clk 0:00:19.3]}
29... Kh8 {[%clk 0:00:54.2]} 30. a5 {[%clk 0:00:19.3]} 30... Nxa5 {[%clk
0:00:50.1]} 31. bxa5 {[%clk 0:00:19]} 31... Qxa5 {[%clk 0:00:49.8]} 32. g3
{[%clk 0:00:16.8]} 32... h6 {[%clk 0:00:49.1]} 33. h4 {[%clk 0:00:16.5]} 33...
Bd8 {[%clk 0:00:48.2]} 34. Ra2 {[%clk 0:00:16]} 34... Qc5 {[%clk 0:00:46.7]} 35.
Rc2 {[%clk 0:00:14.8]} 35... Qb5 {[%clk 0:00:44.6]} 36. Rxc6 {[%clk 0:00:14]}
36... Qxc6 {[%clk 0:00:45.5]} 37. Qc3 {[%clk 0:00:13.5]} 37... Qa6 {[%clk
0:00:44.6]} 38. Qc4 {[%clk 0:00:13.2]} 38... Qa7 {[%clk 0:00:43.4]} 39. Qc6
{[%clk 0:00:12.9]} 39... Qb8 {[%clk 0:00:40.4]} 40. Ba4 {[%clk 0:00:09.7]} 40...
Kg8 {[%clk 0:00:34.7]} 41. Ne3 {[%clk 0:00:08]} 41... Qa7 {[%clk 0:00:34.3]} 42.
Nf5 {[%clk 0:00:06.1]} 42... Bb6 {[%clk 0:00:31]} 43. Rd2 {[%clk 0:00:06.5]}
43... Qa5 {[%clk 0:00:27.1]} 44. Qc2 {[%clk 0:00:02.3]} 44... Bc5 {[%clk
0:00:21.3]} 45. Nxd6 {[%clk 0:00:02]} 45... Bb4 {[%clk 0:00:15.4]} 46. Nc4
{[%clk 0:00:01.8]} 46... Qc5 {[%clk 0:00:14.4]} 47. Rd5 {[%clk 0:00:02.6]} 47...
Qc7 {[%clk 0:00:13.9]} 48. Nxe5 {[%clk 0:00:03]} 48... Qb7 {[%clk 0:00:12.3]}
49. Bb3 {[%clk 0:00:03.3]} 49... Kh7 {[%clk 0:00:10.6]} 50. Nf3 {[%clk
0:00:01.7]} 50... Be7 {[%clk 0:00:09.5]} 51. e5+ {[%clk 0:00:02.6]} 51... Kh8
{[%clk 0:00:06.8]} 52. Qd3 {[%clk 0:00:03.5]} 52... Rc8 {[%clk 0:00:06.6]} 53.
Rd7 {[%clk 0:00:03.6]} 53... Qb4 {[%clk 0:00:06.3]} 54. Bxf7 {[%clk 0:00:03.9]}
54... Rc1+ {[%clk 0:00:04.8]} 55. Kg2 {[%clk 0:00:04.8]} 55... Qb5 {[%clk
0:00:03.8]} 56. Rd8+ {[%clk 0:00:04.8]} 56... Bxd8 {[%clk 0:00:03.2]} 57. Qxd8+
{[%clk 0:00:05.7]} 57... Kh7 {[%clk 0:00:02.7]} 58. Qg8# {[%clk 0:00:06.2]} 1-0

[Event "*** Titled Tuesday Blitz"]
[Site "Chess.com"]
[Date "2020.04.21"]
[Round "3"]
[White "Dinamo81"]
[Black "Harsha_Bharathakoti"]
[Result "1-0"]
[WhiteElo "2636"]
[BlackElo "2790"]
[TimeControl "180+1"]
[EndTime "10:29:51 PDT"]
[Termination "Dinamo81 won by resignation"]

1. d4 {[%clk 0:03:00.9]} 1... d5 {[%clk 0:02:56.8]} 2. Bf4 {[%clk 0:02:59]} 2...
Nf6 {[%clk 0:02:56.7]} 3. e3 {[%clk 0:02:58]} 3... e6 {[%clk 0:02:55.9]} 4. Nd2
{[%clk 0:02:56.9]} 4... Bd6 {[%clk 0:02:55.9]} 5. Bg3 {[%clk 0:02:56.1]} 5... c5
{[%clk 0:02:55.9]} 6. c3 {[%clk 0:02:54.8]} 6... Qc7 {[%clk 0:02:55.9]} 7. Ngf3
{[%clk 0:02:37.1]} 7... Nbd7 {[%clk 0:02:54.4]} 8. Bxd6 {[%clk 0:02:36.8]} 8...
Qxd6 {[%clk 0:02:45.2]} 9. c4 {[%clk 0:02:36.1]} 9... cxd4 {[%clk 0:02:44.1]}
10. exd4 {[%clk 0:02:17.9]} 10... b6 {[%clk 0:02:30.2]} 11. Bd3 {[%clk
0:02:11.1]} 11... Bb7 {[%clk 0:02:28.7]} 12. O-O {[%clk 0:02:10.9]} 12... O-O
{[%clk 0:02:28.4]} 13. a3 {[%clk 0:02:02.6]} 13... Rac8 {[%clk 0:02:22]} 14. Rc1
{[%clk 0:02:01.7]} 14... dxc4 {[%clk 0:02:18.7]} 15. Nxc4 {[%clk 0:01:56.1]}
15... Qf4 {[%clk 0:02:18.6]} 16. Qd2 {[%clk 0:01:48.6]} 16... Qxd2 {[%clk
0:01:27.7]} 17. Nfxd2 {[%clk 0:01:49.5]} 17... Ba6 {[%clk 0:01:21.7]} 18. b4
{[%clk 0:01:27.7]} 18... Rfd8 {[%clk 0:01:13.9]} 19. Rfd1 {[%clk 0:01:26]} 19...
Nb8 {[%clk 0:01:09.4]} 20. Nb3 {[%clk 0:01:21.6]} 20... Kf8 {[%clk 0:00:45.6]}
21. a4 {[%clk 0:01:19.5]} 21... Bxc4 {[%clk 0:00:45.4]} 22. Bxc4 {[%clk
0:01:18.9]} 22... Rc7 {[%clk 0:00:40.8]} 23. Bb5 {[%clk 0:01:00.2]} 23... Rxc1
{[%clk 0:00:29]} 24. Rxc1 {[%clk 0:00:59.3]} 24... Nd5 {[%clk 0:00:29.5]} 25. a5
{[%clk 0:00:49.4]} 25... Nxb4 {[%clk 0:00:27.5]} 26. axb6 {[%clk 0:00:46.7]}
26... axb6 {[%clk 0:00:28.4]} 27. Rc7 {[%clk 0:00:45.1]} 27... Nd5 {[%clk
0:00:22.6]} 28. Rb7 {[%clk 0:00:44.7]} 28... Nf6 {[%clk 0:00:11.2]} 29. Rxb6
{[%clk 0:00:41.1]} 29... Nbd7 {[%clk 0:00:11.8]} 30. Rb7 {[%clk 0:00:38.1]}
30... Kg8 {[%clk 0:00:12.4]} 31. g3 {[%clk 0:00:36]} 31... Nf8 {[%clk 0:00:13]}
32. Kg2 {[%clk 0:00:33.9]} 32... g5 {[%clk 0:00:13.7]} 33. Kf3 {[%clk
0:00:29.7]} 33... Ng6 {[%clk 0:00:14.3]} 34. h3 {[%clk 0:00:28.8]} 34... h5
{[%clk 0:00:14.5]} 35. Bd3 {[%clk 0:00:18.4]} 35... Kg7 {[%clk 0:00:12.1]} 36.
Rb5 {[%clk 0:00:15]} 36... g4+ {[%clk 0:00:09.5]} 37. hxg4 {[%clk 0:00:15.9]}
37... hxg4+ {[%clk 0:00:10.4]} 38. Ke2 {[%clk 0:00:15.8]} 38... Nd5 {[%clk
0:00:10.9]} 39. Kd2 {[%clk 0:00:14.3]} 39... Ra8 {[%clk 0:00:10.4]} 40. Nc5
{[%clk 0:00:11.8]} 40... Ra2+ {[%clk 0:00:10.4]} 41. Bc2 {[%clk 0:00:12.1]}
41... Nge7 {[%clk 0:00:08.1]} 42. Rb7 {[%clk 0:00:12]} 42... Ra3 {[%clk
0:00:05.8]} 43. Bb3 {[%clk 0:00:10.1]} 43... Kf6 {[%clk 0:00:05.2]} 44. Kc2
{[%clk 0:00:09.5]} 44... Nf5 {[%clk 0:00:03.9]} 45. Kb2 {[%clk 0:00:09.4]} 45...
Ra8 {[%clk 0:00:03.1]} 46. Ne4+ {[%clk 0:00:08.3]} 46... Kg6 {[%clk 0:00:02.9]}
47. Bxd5 {[%clk 0:00:08.4]} 47... exd5 {[%clk 0:00:03.8]} 48. Nc3 {[%clk
0:00:08.6]} 48... Nxd4 {[%clk 0:00:03.8]} 49. Nxd5 {[%clk 0:00:08.1]} 49... Re8
{[%clk 0:00:04.3]} 50. Rb6+ {[%clk 0:00:08.6]} 50... Kg7 {[%clk 0:00:03.8]} 51.
Ne3 {[%clk 0:00:09.4]} 51... f5 {[%clk 0:00:03.1]} 52. Rb4 {[%clk 0:00:09]}
52... Re4 {[%clk 0:00:02.3]} 53. Rxd4 {[%clk 0:00:09]} 53... Re5 {[%clk
0:00:02.3]} 54. Rf4 {[%clk 0:00:07.9]} 54... Kg6 {[%clk 0:00:02.4]} 55. Kc3
{[%clk 0:00:08.4]} 55... Ra5 {[%clk 0:00:01.9]} 56. Kd3 {[%clk 0:00:07.9]} 56...
Ra3+ {[%clk 0:00:02.5]} 57. Ke2 {[%clk 0:00:07.8]} 57... Ra2+ {[%clk 0:00:03.3]}
58. Kf1 {[%clk 0:00:08.4]} 58... Ra1+ {[%clk 0:00:04.2]} 59. Kg2 {[%clk
0:00:09]} 59... Ra5 {[%clk 0:00:05.1]} 60. Rd4 {[%clk 0:00:09]} 60... Kg5 {[%clk
0:00:05.5]} 61. Rd5 {[%clk 0:00:09.2]} 1-0